[Event "Silves Open 2025"]
[Site "Fissul"]
[Date "2025.03.04"]
[Round "5.10"]
[White "Khamrakulov, Ibragim S."]
[Black "Goncalves, Diogo Figueiredo"]
[Result "1-0"]
[Annotator "ChessBase"]
[ECO "B10"]
[WhiteElo "2384"]
[BlackElo "1985"]
[PlyCount "125"]
[EventDate "2025.03.03"]
[EventType "swiss"]
[EventCountry "POR"]
[SourceTitle "playchess.com"]
[Source "ChessBase"]
[SourceQuality "1"]
[TimeControl "5400+30"]

1. e4 {[%emt 0:07:33]} c6 {[%emt 0:00:27]} 2. c4 {[%emt 0:00:38]} d5 {[%emt 0:00:08]} 3. exd5 {[%emt 0:00:51]} cxd5 {[%emt 0:00:02]} 4. cxd5 {[%emt 0:00:35]} Nf6 {[%emt 0:00:07]} 5. Nc3 {[%emt 0:00:15]} Nxd5 {[%emt 0:00:21]} 6. Bc4 {[%emt 0:04:35]} Nb6 {[%emt 0:03:04]} 7. Bb3 {[%emt 0:02:39]} Nc6 {[%emt 0:11:15]} 8. Nf3 {[%emt 0:01:37]} Bf5 {[%emt 0:31:33]} 9. d4 {[%emt 0:11:16]} e6 {[%emt 0:00:32]} 10. a4 {[%emt 0:03:46]} Bb4 {[%emt 0:07:30]} 11. Bg5 {[%emt 0:14:45]} Qd7 {[%emt 0:02:52]} 12. O-O {[%emt 0:03:52]} O-O {[%emt 0:00:15]} 13. h3 {[%emt 0:03:15]} h6 {[%emt 0:03:56]} 14. Be3 {[%emt 0:01:46]} Rac8 {[%emt 0:03:26]} 15. d5 {[%emt 0:17:21]} Nxd5 {[%emt 0:04:40]} 16. Nxd5 {[%emt 0:02:41]} exd5 {[%emt 0:00:02]} 17. Qxd5 {[%emt 0:00:06]} Qxd5 {[%emt 0:03:09]} 18. Bxd5 {[%emt 0:02:48]} a5 {[%emt 0:03:31]} 19. Rac1 {[%emt 0:07:38]} Rfd8 {[%emt 0:02:14]} 20. Rfd1 {[%emt 0:00:15]} Re8 {[%emt 0:03:40]} 21. Bb6 {[%emt 0:02:41]} Be4 {[%emt 0:04:44]} 22. Bxe4 {[%emt 0:01:27]} Rxe4 {[%emt 0:00:02]} 23. Nd4 {[%emt 0:00:10]} Rce8 {[%emt 0:05:00]} 24. Nxc6 {[%emt 0:00:20]} bxc6 {[%emt 0:00:02]} 25. Rxc6 {[%emt 0:00:08]} Re1+ {[%emt 0:00:26]} 26. Rxe1 {[%emt 0:01:18]} Rxe1+ {[%emt 0:00:02]} 27. Kh2 {[%emt 0:00:15]} Ra1 {[%emt 0:00:16]} 28. b3 {[%emt 0:01:47]} Ra3 {[%emt 0:00:20]} 29. Rc8+ {[%emt 0:02:43]} Kh7 {[%emt 0:00:05]} 30. Ra8 {[%emt 0:00:04]} Rxb3 {[%emt 0:00:11]} 31. Bxa5 {[%emt 0:00:03]} Bxa5 {[%emt 0:00:10]} 32. Rxa5 {[%emt 0:00:16]} Ra3 {[%emt 0:00:18]} 33. h4 {[%emt 0:00:33]} g6 {[%emt 0:00:19]} 34. g4 {[%emt 0:01:29]} Kg7 {[%emt 0:01:02]} 35. Kg2 {[%emt 0:00:31]} Kf6 {[%emt 0:00:59]} 36. Ra7 {[%emt 0:03:44]} Kg7 {[%emt 0:00:36]} 37. a5 {[%emt 0:00:32]} Ra4 {[%emt 0:00:06]} 38. Kg3 {[%emt 0:00:09]} Ra3+ {[%emt 0:00:05]} 39. f3 {[%emt 0:00:05]} Ra1 {[%emt 0:00:07]} 40. a6 {[%emt 0:00:32]} Ra4 {[%emt 0:04:15]} 41. Ra8 {[%emt 0:00:30]} Kf6 {[%emt 0:02:59]} 42. Kf2 {[%emt 0:01:32]} Ra3 {[%emt 0:00:24]} 43. f4 {[%emt 0:01:52]} Kg7 {[%emt 0:04:12]} 44. Ke2 {[%emt 0:00:07]} Ra4 {[%emt 0:00:30]} 45. Ke3 {[%emt 0:00:07]} Kf6 {[%emt 0:00:15]} 46. g5+ {[%emt 0:01:48]} hxg5 {[%emt 0:00:22]} 47. hxg5+ {[%emt 0:00:25]} Kf5 {[%emt 0:01:58]} 48. Ra7 {[%emt 0:00:06]} f6 {[%emt 0:00:50]} 49. gxf6 {[%emt 0:00:09]} Kxf6 {[%emt 0:00:07]} 50. Ra8 {[%emt 0:00:22]} Kf7 {[%emt 0:00:37]} 51. Kd3 {[%emt 0:00:49]} Kg7 {[%emt 0:00:45]} 52. Kc3 {[%emt 0:00:36]} Rxf4 {[%emt 0:00:43]} 53. Kb3 {[%emt 0:00:03]} Rf1 {[%emt 0:00:48]} 54. Rd8 {[%emt 0:00:37]} Ra1 {[%emt 0:00:26]} 55. Rd6 {[%emt 0:00:05]} g5 {[%emt 0:00:21]} 56. Kb4 {[%emt 0:00:06]} g4 {[%emt 0:00:25]} 57. Kb5 {[%emt 0:00:09]} g3 {[%emt 0:00:56]} 58. Rd3 {[%emt 0:00:21]} Kf6 {[%emt 0:00:23]} 59. Rxg3 {[%emt 0:00:15]} Ke6 {[%emt 0:00:12]} 60. Rd3 {[%emt 0:00:05]} Rb1+ {[%emt 0:00:23]} 61. Ka4 {[%emt 0:00:26]} Rb6 {[%emt 0:00:27]} 62. Ka5 {[%emt 0:00:06]} Rb1 {[%emt 0:00:12]} 63. Ra3 {[%emt 0:00:08]} 1-0

[Event "Silves Open 2025"]
[Site "Fissul"]
[Date "2025.03.04"]
[Round "5.12"]
[White "Albuquerque, Eduardo Ferreira"]
[Black "Vasques, Antonio Pedro Freixi"]
[Result "0-1"]
[Annotator "NA"]
[ECO "E04"]
[WhiteElo "1897"]
[BlackElo "2246"]
[PlyCount "72"]
[EventDate "2025.03.03"]
[EventType "swiss"]
[EventCountry "POR"]
[SourceTitle "playchess.com"]
[Source "ChessBase"]
[SourceQuality "1"]
[TimeControl "5400+30"]

1. d4 {[%emt 0:00:15]} Nf6 {[%emt 0:00:12]} 2. c4 {[%emt 0:00:12]} e6 {[%emt 0:00:05]} 3. g3 {[%emt 0:00:10]} d5 {[%emt 0:00:07]} 4. Nf3 {[%emt 0:00:12]} dxc4 {[%emt 0:00:11]} 5. Bg2 {[%emt 0:00:09]} Nbd7 {[%emt 0:00:26]} 6. O-O {[%emt 0:07:06]} Rb8 {[%emt 0:00:14]} 7. a4 {[%emt 0:03:44]} a6 {[%emt 0:00:22]} 8. Qc2 {[%emt 0:05:51]} b5 {[%emt 0:06:31]} 9. Bg5 {[%emt 0:13:10]} Be7 {[%emt 0:09:44]} 10. Rd1 {[%emt 0:05:23]} Bb7 {[%emt 0:01:40]} 11. Nbd2 {[%emt 0:03:04]} Nd5 {[%emt 0:04:53]} 12. Bxe7 {[%emt 0:04:44]} Qxe7 {[%emt 0:00:04]} 13. h4 {[%emt 0:12:06]} h6 {[%emt 0:06:15]} 14. e4 {[%emt 0:08:23]} Nb4 {[%emt 0:13:01]} 15. Qc3 {[%emt 0:01:14]} O-O {[%emt 0:01:01]} 16. b3 {[%emt 0:03:38]} cxb3 {[%emt 0:03:50]} 17. Qxb3 {[%emt 0:00:56]} bxa4 {[%emt 0:05:18]} 18. Rxa4 {[%emt 0:03:48]} c5 {[%emt 0:01:39]} 19. dxc5 {[%emt 0:08:40]} Nxc5 {[%emt 0:01:03]} 20. Qxb4 {[%emt 0:00:19]} Bc6 {[%emt 0:00:04]} 21. Qa3 {[%emt 0:00:22]} Bxa4 {[%emt 0:00:05]} 22. Rc1 {[%emt 0:00:06]} Rfc8 {[%emt 0:00:05]} 23. Rxc5 {[%emt 0:00:36]} Qxc5 {[%emt 0:00:18]} 24. Qxa4 {[%emt 0:00:05]} a5 {[%emt 0:00:26]} 25. Bf1 {[%emt 0:02:23]} Qb4 {[%emt 0:01:18]} 26. Qa2 {[%emt 0:00:53]} a4 {[%emt 0:01:05]} 27. Kg2 {[%emt 0:00:17]} Rc3 {[%emt 0:03:31]} 28. Nc4 {[%emt 0:02:21]} Qb3 {[%emt 0:03:14]} 29. Qxb3 {[%emt 0:00:40]} axb3 {[%emt 0:00:07]} 30. Na3 {[%emt 0:01:10]} b2 {[%emt 0:00:47]} 31. Nb1 {[%emt 0:00:07]} Rc1 {[%emt 0:00:03]} 32. Nfd2 {[%emt 0:00:10]} Rd8 {[%emt 0:00:05]} 33. Be2 {[%emt 0:02:26]} Rxd2 {[%emt 0:00:10]} 34. Nxd2 {[%emt 0:00:05]} Rc2 {[%emt 0:00:05]} 35. Nb1 {[%emt 0:00:13]} Rxe2 {[%emt 0:00:04]} 36. Kf1 {[%emt 0:00:16]} Rc2 {[%emt 0:00:04]} 0-1

[Event "Silves Open 2025"]
[Site "Fissul"]
[Date "2025.03.04"]
[Round "5.13"]
[White "Rasti, Arvin"]
[Black "Avelino, Camila Biscaya"]
[Result "1-0"]
[Annotator "NA"]
[ECO "E60"]
[WhiteElo "2232"]
[BlackElo "1906"]
[PlyCount "79"]
[EventDate "2025.03.03"]
[EventType "swiss"]
[EventCountry "POR"]
[SourceTitle "playchess.com"]
[Source "ChessBase"]
[SourceQuality "1"]
[TimeControl "5400+30"]

1. Nf3 {[%emt 1:31:00]} Nf6 {[%emt 1:31:00]} 2. g3 {[%emt 0:00:30]} g6 {[%emt 0:00:30]} 3. Bg2 {[%emt 0:00:30]} Bg7 {[%emt 0:00:30]} 4. O-O {[%emt 0:00:30]} O-O {[%emt 0:00:30]} 5. d4 {[%emt 0:00:30]} d6 {[%emt 0:00:30]} 6. b3 {[%emt 0:00:30]} c5 {[%emt 0:00:30]} 7. Bb2 {[%emt 0:00:30]} Nc6 {[%emt 0:00:30]} 8. c4 {[%emt 0:00:30]} cxd4 {[%emt 0:00:30]} 9. Nxd4 {[%emt 0:00:30]} Bd7 {[%emt 0:00:30]} 10. Nc3 {[%emt 0:00:30]} Qc8 {[%emt 0:00:30]} 11. Re1 {[%emt 0:00:30]} Bh3 {[%emt 0:00:30]} 12. Bh1 {[%emt 0:00:30]} Re8 {[%emt 0:00:30]} 13. Rc1 {[%emt 0:00:30]} Nxd4 {[%emt 0:00:30]} 14. Qxd4 {[%emt 0:00:30]} Ng4 {[%emt 0:00:30]} 15. Qd2 {[%emt 0:00:30]} Qc5 {[%emt 0:00:30]} 16. Ne4 {[%emt 0:00:30]} Qf5 {[%emt 0:00:30]} 17. Bxg7 {[%emt 0:00:30]} Kxg7 {[%emt 0:00:30]} 18. Qg5 {[%emt 0:00:30]} Ne5 {[%emt 0:00:30]} 19. Red1 {[%emt 0:00:30]} Rac8 {[%emt 0:00:30]} 20. Qe3 {[%emt 0:00:30]} b6 {[%emt 0:00:30]} 21. Rd5 {[%emt 0:00:30]} Qd7 {[%emt 0:00:30]} 22. Rcd1 {[%emt 0:00:30]} Qc7 {[%emt 0:00:30]} 23. Qd4 {[%emt 0:00:30]} Kg8 {[%emt 0:00:30]} 24. Ng5 {[%emt 0:00:30]} Bd7 {[%emt 0:00:30]} 25. Qh4 {[%emt 0:00:30]} h5 {[%emt 0:00:30]} 26. Qf4 {[%emt 0:00:30]} f6 {[%emt 0:00:30]} 27. Ne4 {[%emt 0:00:30]} Kg7 {[%emt 0:00:30]} 28. Qd2 {[%emt 0:00:30]} Be6 {[%emt 0:00:30]} 29. Rd4 {[%emt 0:00:30]} Rh8 {[%emt 0:00:30]} 30. h4 {[%emt 0:00:30]} Rhe8 {[%emt 0:00:30]} 31. Nc3 {[%emt 0:00:30]} Nc6 {[%emt 0:00:30]} 32. Nb5 {[%emt 0:00:30]} Qd7 {[%emt 0:00:30]} 33. Re4 {[%emt 0:00:30]} a6 {[%emt 0:00:30]} 34. Nc3 {[%emt 0:00:30]} Bf5 {[%emt 0:00:30]} 35. Re3 {[%emt 0:00:30]} Ne5 {[%emt 0:00:30]} 36. Nd5 {[%emt 0:00:30]} Rb8 {[%emt 0:00:30]} 37. Rc3 {[%emt 0:00:30]} Rec8 {[%emt 0:00:30]} 38. Qe3 {[%emt 0:00:30]} Rc5 {[%emt 0:00:30]} 39. f4 {[%emt 0:00:30]} Nc6 {[%emt 0:00:30]} 40. b4 {[%emt 0:00:30]} 1-0

[Event "Silves Open 2025"]
[Site "Fissul"]
[Date "2025.03.04"]
[Round "5.15"]
[White "Ryabukhin, Roman"]
[Black "Salas Munoz, Paulino Jose"]
[Result "1-0"]
[Annotator "NA RC"]
[ECO "B08"]
[WhiteElo "2209"]
[BlackElo "1915"]
[PlyCount "61"]
[EventDate "2025.03.03"]
[EventType "swiss"]
[EventCountry "POR"]
[SourceTitle "playchess.com"]
[Source "ChessBase"]
[SourceQuality "1"]
[TimeControl "5400+30"]

1. d4 {[%emt 1:31:00]} d6 {[%emt 1:31:00]} 2. e4 {[%emt 0:00:30]} Nf6 {[%emt 0:00:30]} 3. Nc3 {[%emt 0:00:30]} g6 {[%emt 0:00:30]} 4. Nf3 {[%emt 0:00:30]} Bg7 {[%emt 0:00:30]} 5. Be2 {[%emt 0:00:30]} O-O {[%emt 0:00:30]} 6. O-O {[%emt 0:00:30]} e5 {[%emt 0:00:30]} 7. h3 {[%emt 0:00:30]} exd4 {[%emt 0:00:30]} 8. Nxd4 {[%emt 0:00:30]} c6 {[%emt 0:00:30]} 9. Bg5 {[%emt 0:00:30]} Qa5 {[%emt 0:00:30]} 10. Nf3 {[%emt 0:00:30]} d5 {[%emt 0:00:30]} 11. exd5 {[%emt 0:00:30]} Nxd5 {[%emt 0:00:30]} 12. Nxd5 {[%emt 0:00:30]} cxd5 {[%emt 0:00:30]} 13. c3 {[%emt 0:00:30]} Nc6 {[%emt 0:00:30]} 14. Bd3 {[%emt 0:00:30]} Be6 {[%emt 0:00:30]} 15. Re1 {[%emt 0:00:30]} Rfe8 {[%emt 0:00:30]} 16. a3 {[%emt 0:00:30]} Qc7 {[%emt 0:00:30]} 17. Rc1 {[%emt 0:00:30]} Bd7 {[%emt 0:00:30]} 18. Be2 {[%emt 0:00:30]} Be6 {[%emt 0:00:30]} 19. Qd2 {[%emt 0:00:30]} Na5 {[%emt 0:00:30]} 20. Nd4 {[%emt 0:00:30]} Bd7 {[%emt 0:00:30]} 21. h4 {[%emt 0:00:30]} Nc4 {[%emt 0:00:30]} 22. Qc2 {[%emt 0:00:30]} f6 {[%emt 0:00:30]} 23. Bd2 {[%emt 0:00:30]} Nxd2 {[%emt 0:00:30]} 24. Qxd2 {[%emt 0:00:30]} Re4 {[%emt 0:00:30]} 25. Bf3 {[%emt 0:00:30]} Rxh4 {[%emt 0:00:30]} 26. g3 {[%emt 0:00:30]} Bh6 {[%emt 0:00:30]} 27. Bxd5+ {[%emt 0:00:30]} Kh8 {[%emt 0:00:30]} 28. f4 {[%emt 0:00:30]} Rh3 {[%emt 0:00:30]} 29. Kg2 {[%emt 0:00:30]} g5 {[%emt 0:00:30]} 30. Be6 {[%emt 0:00:30]} gxf4 {[%emt 0:00:30]} 31. Kxh3 {[%emt 0:00:30]} 1-0

[Event "Silves Open 2025"]
[Site "Fissul"]
[Date "2025.03.04"]
[Round "5.16"]
[White "Santos, Jose P"]
[Black "Milat, Marcel"]
[Result "0-1"]
[Annotator "NA RC"]
[ECO "B33"]
[WhiteElo "2273"]
[BlackElo "2190"]
[PlyCount "54"]
[EventDate "2025.03.03"]
[EventType "swiss"]
[EventCountry "POR"]
[SourceTitle "playchess.com"]
[Source "ChessBase"]
[SourceQuality "1"]
[TimeControl "5400+30"]

1. e4 {[%emt 0:05:43]} c5 {[%emt 0:00:19]} 2. Nf3 {[%emt 0:00:22]} Nc6 {[%emt 0:00:08]} 3. d4 {[%emt 0:00:04]} cxd4 {[%emt 0:00:08]} 4. Nxd4 {[%emt 0:00:04]} Nf6 {[%emt 0:00:08]} 5. Nc3 {[%emt 1:26:47]} e5 6. Nf5 d5 7. exd5 Bxf5 8. dxc6 Qxd1+ 9. Nxd1 bxc6 10. Ne3 Bg6 11. Bc4 Bc5 12. c3 a5 13. a4 {[%emt 0:00:00]} Ke7 {[%emt 0:04:06]} 14. O-O {[%emt 0:00:00]} Rhd8 {[%emt 0:30:56]} 15. Re1 {[%emt 0:00:00]} Ne4 {[%emt 0:01:18]} 16. h4 {[%emt 0:00:00]} h5 {[%emt 0:01:49]} 17. Be2 {[%emt 0:00:00]} f6 {[%emt 0:09:05]} 18. Bf3 {[%emt 0:00:00]} Nd2 {[%emt 0:15:08]} 19. Bxc6 {[%emt 0:00:00]} Nb3 {[%emt 0:00:06]} 20. Bxa8 {[%emt 0:07:30]} Rxa8 21. Nd5+ Kd6 22. Nf4 Bf5 23. Nxh5 Nxa1 24. Nxg7 {[%emt 0:00:00]} Bg4 {[%emt 0:02:19]} 25. b4 {[%emt 0:00:00]} axb4 {[%emt 0:10:35]} 26. cxb4 {[%emt 0:00:00]} Bd4 {[%emt 0:00:30]} 27. Be3 {[%emt 0:00:00]} Nc2 {[%emt 0:00:30]} 0-1

[Event "Silves Open 2025"]
[Site "Fissul"]
[Date "2025.03.04"]
[Round "5.17"]
[White "Boesel, Alexander"]
[Black "Esteves, Goncalo Maria Franco"]
[Result "1-0"]
[Annotator "NA RC"]
[ECO "C54"]
[WhiteElo "2046"]
[BlackElo "1962"]
[PlyCount "112"]
[EventDate "2025.03.03"]
[EventType "swiss"]
[EventCountry "POR"]
[SourceTitle "playchess.com"]
[Source "ChessBase"]
[SourceQuality "1"]
[TimeControl "5400+30"]

1. e4 {[%emt 1:31:00]} e5 {[%emt 1:31:00]} 2. Nf3 {[%emt 0:00:30]} Nc6 {[%emt 0:00:30]} 3. Bc4 {[%emt 0:00:30]} Bc5 {[%emt 0:00:30]} 4. d3 {[%emt 0:00:30]} Nf6 {[%emt 0:00:30]} 5. O-O {[%emt 0:00:30]} a6 {[%emt 0:00:30]} 6. c3 {[%emt 0:00:30]} d6 {[%emt 0:00:30]} 7. Bb3 {[%emt 0:00:30]} Ba7 {[%emt 0:00:30]} 8. Nbd2 {[%emt 0:00:30]} h6 {[%emt 0:00:30]} 9. Qe2 {[%emt 0:00:30]} Be6 {[%emt 0:00:30]} 10. Nc4 {[%emt 0:00:30]} Bxc4 {[%emt 0:00:30]} 11. dxc4 {[%emt 0:00:30]} O-O {[%emt 0:00:30]} 12. Nh4 {[%emt 0:00:30]} Ne7 {[%emt 0:00:30]} 13. Qf3 {[%emt 0:00:30]} Kh7 {[%emt 0:00:30]} 14. Bc2 {[%emt 0:00:30]} Qd7 {[%emt 0:00:30]} 15. h3 {[%emt 0:00:30]} Nfg8 {[%emt 0:00:30]} 16. Kh2 {[%emt 0:00:30]} g5 {[%emt 0:00:30]} 17. Nf5 {[%emt 0:00:30]} c6 {[%emt 0:00:30]} 18. Bxg5 {[%emt 0:00:30]} Nxf5 {[%emt 0:00:30]} 19. exf5 {[%emt 0:00:30]} f6 {[%emt 0:00:30]} 20. Be3 {[%emt 0:00:30]} Bxe3 {[%emt 0:00:30]} 21. fxe3 {[%emt 0:00:30]} Qf7 {[%emt 0:00:30]} 22. Bb3 {[%emt 0:00:30]} Ne7 {[%emt 0:00:30]} 23. Rad1 {[%emt 0:00:30]} Rad8 {[%emt 0:00:30]} 24. Rf2 {[%emt 0:00:30]} Rd7 {[%emt 0:00:30]} 25. Rfd2 {[%emt 0:00:30]} Rfd8 {[%emt 0:00:30]} 26. e4 {[%emt 0:00:30]} Qe8 {[%emt 0:00:30]} 27. Rd3 {[%emt 0:00:30]} Nc8 {[%emt 0:00:30]} 28. R1d2 {[%emt 0:00:30]} Nb6 {[%emt 0:00:30]} 29. Qd1 {[%emt 0:00:30]} Qe7 {[%emt 0:00:30]} 30. a3 {[%emt 0:00:30]} a5 {[%emt 0:00:30]} 31. Ba2 {[%emt 0:00:30]} a4 {[%emt 0:00:30]} 32. b4 {[%emt 0:00:30]} c5 {[%emt 0:00:30]} 33. Rg3 {[%emt 0:00:30]} Rg8 {[%emt 0:00:30]} 34. Rxg8 {[%emt 0:00:30]} Kxg8 {[%emt 0:00:30]} 35. Qh5 {[%emt 0:00:30]} Qf8 {[%emt 0:00:30]} 36. Kh1 {[%emt 0:00:30]} Kh7 {[%emt 0:00:30]} 37. Qg6+ {[%emt 0:00:30]} Kh8 {[%emt 0:00:30]} 38. Rd3 {[%emt 0:00:30]} Rh7 {[%emt 0:00:30]} 39. Rg3 {[%emt 0:00:30]} Qf7 {[%emt 0:00:30]} 40. b5 {[%emt 0:00:30]} Nc8 {[%emt 0:00:30]} 41. Bb1 {[%emt 0:00:30]} Ne7 {[%emt 0:00:30]} 42. Qxf7 {[%emt 0:00:30]} Rxf7 {[%emt 0:00:30]} 43. Bc2 {[%emt 0:00:30]} Rg7 {[%emt 0:00:30]} 44. Rd3 {[%emt 0:00:30]} Nc8 {[%emt 0:00:30]} 45. Bxa4 {[%emt 0:00:30]} b6 {[%emt 0:00:30]} 46. Bd1 {[%emt 0:00:30]} Kg8 {[%emt 0:00:30]} 47. a4 {[%emt 0:00:30]} Kf8 {[%emt 0:00:30]} 48. Kh2 {[%emt 0:00:30]} Rd7 {[%emt 0:00:30]} 49. Rd2 {[%emt 0:00:30]} Ra7 {[%emt 0:00:30]} 50. Kg3 {[%emt 0:00:30]} Rg7+ {[%emt 0:00:30]} 51. Kh4 {[%emt 0:00:30]} Rg5 {[%emt 0:00:30]} 52. g4 {[%emt 0:00:30]} Ke7 {[%emt 0:00:30]} 53. Ra2 {[%emt 0:00:30]} d5 {[%emt 0:00:30]} 54. cxd5 {[%emt 0:00:30]} Nd6 {[%emt 0:00:30]} 55. a5 {[%emt 0:00:30]} Nxb5 {[%emt 0:00:30]} 56. axb6 {[%emt 0:00:30]} Kd7 {[%emt 0:00:30]} 1-0

[Event "Silves Open 2025"]
[Site "Fissul"]
[Date "2025.03.04"]
[Round "5.18"]
[White "Silva, Ana Ines Teixeira Da"]
[Black "Kuegel, Tobias"]
[Result "0-1"]
[Annotator "ChessBase"]
[ECO "B13"]
[WhiteElo "1901"]
[BlackElo "2423"]
[PlyCount "94"]
[EventDate "2025.03.03"]
[EventType "swiss"]
[EventCountry "POR"]
[SourceTitle "playchess.com"]
[Source "ChessBase"]
[SourceQuality "1"]
[TimeControl "5400+30"]

1. e4 {[%emt 0:06:20]} c6 {[%emt 0:00:02]} 2. d4 {[%emt 0:00:10]} d5 {[%emt 0:00:01]} 3. exd5 {[%emt 0:00:12]} cxd5 {[%emt 0:00:02]} 4. Bd3 {[%emt 0:00:23]} Nc6 {[%emt 0:00:01]} 5. c3 {[%emt 0:00:20]} Nf6 {[%emt 0:00:02]} 6. h3 {[%emt 0:00:33]} e5 {[%emt 0:00:02]} 7. dxe5 {[%emt 0:00:26]} Nxe5 {[%emt 0:00:02]} 8. Nf3 {[%emt 0:03:42]} Nxd3+ {[%emt 0:00:02]} 9. Qxd3 {[%emt 0:00:07]} Bd6 {[%emt 0:00:02]} 10. O-O {[%emt 0:01:30]} O-O {[%emt 0:00:03]} 11. Be3 {[%emt 0:09:30]} Re8 {[%emt 0:00:02]} 12. Nbd2 {[%emt 0:05:31]} h6 {[%emt 0:00:07]} 13. Rfe1 {[%emt 0:01:40]} Ne4 {[%emt 0:00:33]} 14. Nd4 {[%emt 0:07:18]} a6 {[%emt 0:05:12]} 15. Rad1 {[%emt 0:05:16]} Bd7 {[%emt 0:01:41]} 16. N2b3 {[%emt 0:20:41]} Qc7 {[%emt 0:05:10]} 17. Ne2 {[%emt 0:08:21]} Rad8 {[%emt 0:03:19]} 18. Nbd4 {[%emt 0:04:08]} Ba4 {[%emt 0:03:58]} 19. Rc1 {[%emt 0:03:21]} Bd7 {[%emt 0:00:15]} 20. Red1 {[%emt 0:11:03]} b5 {[%emt 0:04:13]} 21. a3 {[%emt 0:02:42]} Bh2+ {[%emt 0:05:01]} 22. Kh1 {[%emt 0:02:15]} Be5 {[%emt 0:00:04]} 23. Nf3 {[%emt 0:00:45]} Bf5 {[%emt 0:00:14]} 24. Kg1 {[%emt 0:02:07]} Bh7 {[%emt 0:15:45]} 25. Nxe5 {[%emt 0:01:22]} Nxf2 {[%emt 0:00:01]} 26. Qd4 {[%emt 0:01:35]} Nxd1 {[%emt 0:00:09]} 27. Rxd1 {[%emt 0:01:17]} Qxe5 {[%emt 0:00:10]} 28. Qxe5 {[%emt 0:00:53]} Rxe5 {[%emt 0:00:01]} 29. Bb6 {[%emt 0:00:08]} Rde8 {[%emt 0:01:33]} 30. Nf4 {[%emt 0:01:06]} Re1+ {[%emt 0:00:04]} 31. Rxe1 {[%emt 0:00:03]} Rxe1+ {[%emt 0:00:04]} 32. Kf2 {[%emt 0:00:04]} Rb1 {[%emt 0:00:04]} 33. Nxd5 {[%emt 0:00:23]} Rxb2+ {[%emt 0:00:04]} 34. Kf3 {[%emt 0:00:07]} Rd2 {[%emt 0:00:58]} 35. Nb4 {[%emt 0:00:57]} Rd6 {[%emt 0:01:38]} 36. Bc5 {[%emt 0:00:47]} Re6 {[%emt 0:00:14]} 37. Kf2 {[%emt 0:01:07]} Be4 {[%emt 0:00:11]} 38. Na2 {[%emt 0:00:36]} Bxg2 {[%emt 0:00:20]} 39. Kxg2 {[%emt 0:00:28]} Re2+ {[%emt 0:00:02]} 40. Kf3 {[%emt 0:00:12]} Rxa2 {[%emt 0:00:05]} 41. Ke4 {[%emt 0:00:11]} Rh2 {[%emt 0:00:46]} 42. Kd5 {[%emt 0:00:15]} Rxh3 {[%emt 0:00:03]} 43. Bb4 {[%emt 0:00:32]} g5 {[%emt 0:00:01]} 44. Kc6 {[%emt 0:00:16]} g4 {[%emt 0:00:05]} 45. Kb6 {[%emt 0:00:07]} g3 {[%emt 0:00:05]} 46. Kxa6 {[%emt 0:00:14]} g2 {[%emt 0:00:03]} 47. Bc5 {[%emt 0:00:06]} Rxc3 {[%emt 0:00:04]} 0-1

[Event "Silves Open 2025"]
[Site "Fissul"]
[Date "2025.03.04"]
[Round "5.19"]
[White "Nguyen, Anh Khoi"]
[Black "Ryabukhina, Veronika"]
[Result "1-0"]
[Annotator "TA"]
[ECO "E01"]
[WhiteElo "2520"]
[BlackElo "1880"]
[PlyCount "43"]
[EventDate "2025.03.03"]
[EventType "swiss"]
[EventCountry "POR"]
[SourceTitle "playchess.com"]
[Source "ChessBase"]
[SourceQuality "1"]
[TimeControl "5400+30"]

{[%evp 22,43,31,24,26,15,33,33,150,148,158,163,154,169,160,87,641,630,632,635,776,769,819,815]} 1. c4 {[%emt 1:31:00]} e6 {[%emt 1:31:00]} 2. g3 {[%emt 0:00:30]} d5 {[%emt 0:00:30]} 3. Bg2 {[%emt 0:00:30]} Nf6 {[%emt 0:00:30]} 4. Nf3 {[%emt 0:00:30]} c6 {[%emt 0:00:30]} 5. d4 {[%emt 0:00:30]} Bd6 {[%emt 0:00:30]} 6. O-O {[%emt 0:00:30]} O-O {[%emt 0:00:30]} 7. Qc2 {[%emt 0:00:30]} b6 {[%emt 0:00:30]} 8. Nbd2 {[%emt 0:00:30]} Bb7 {[%emt 0:00:30]} 9. e4 {[%emt 0:00:30]} dxe4 {[%emt 0:00:30]} 10. Nxe4 {[%emt 0:00:30]} Nxe4 {[%emt 0:00:30]} 11. Qxe4 {[%emt 0:00:30]} Nd7 {[%emt 0:00:30][%cal Bb8d7,Bd7f8,Bf8g6][%mdl 32]} 12. Rd1 $1 {[%emt 0:00:30][%cal Bf1d1,Bd1e1,Be1e5][%mdl 32] 12.Rd1 is better than 12.Ne5.} Qc7 {[%emt 0:00:30] E01: Catalan: Early deviations.} 13. Qc2 {[%emt 0:00:30]} Rfe8 {[%emt 0:00:30]} 14. Ng5 {[%emt 0:00:30]} f5 $146 {[%emt 0:00:30]} (14... Nf6 $14) (14... Nf6 15. c5 Bf8 16. Bf4 Qd7 17. Be5 h6 18. Bxf6 hxg5 19. Bxg5 Be7 20. Bxe7 Qxe7 21. cxb6 axb6 {½-½ Kormann,W (2167)-Steininger,F (2060) Steyr Landesliga 1920 2019 (8.5)}) 15. Re1 $16 {[%emt 0:00:30]} Nf8 {[%emt 0:00:30]} 16. c5 {[%emt 0:00:30] White has more active pieces.} bxc5 {[%emt 0:00:30]} 17. dxc5 {[%emt 0:00:30]} Be5 {[%emt 0:00:30]} 18. Qc4 {[%emt 0:00:30]} ({White should try} 18. Bf1) 18... Kh8 $2 {[%emt 0:00:30][%mdl 8192] [#] This costs Black the game.} (18... a5 $16) 19. Rxe5 $1 $18 {[%emt 0:00:30] White is clearly winning.} h6 {[%emt 0:00:30]} 20. Nf3 {[%emt 0:00:30]} (20. Nxe6 Qxe5 21. Nd4 Ne6 22. Nxe6 Qxe6 23. Qxe6 Rxe6 $15) 20... Ng6 {[%emt 0:00:30]} 21. Rxe6 {[%emt 0:00:30]} Rxe6 {[%emt 0:00:30]} 22. Qxe6 {[%emt 0:00:30] Weighted Error Value: White=0.09 (flawless) /Black=0.95  Loses game:     	---       	Black=1      Mistake:       	White=1     	Black=1      OK:         	White=2     	Black=4      Best:        	White=2     	---        Brilliant:      	White=1     	---} 1-0